bitfinex/quotes_SOLUSD_20250708
["timestamp","ask_amount","ask_price","bid_price","bid_amount"]
[1751974118944,0.06,151.44,151.43,11.33729969]
[1751974119145,0.06,151.44,151.43,9.82099969]
[1751974119456,0.06,151.44,151.42,6.0158]
[1751974119457,0.06,151.44,151.42,6.60400244]
[1751974119657,0.06,151.44,151.43,36.67728841]
[1751974121444,0.06,151.44,151.43,43.28099969]
[1751974126062,0.06,151.44,151.43,9.82099969]
[1751974126269,0.06,151.44,151.43,43.28099969]
[1751974126961,0.06,151.44,151.43,9.82099969]
[1751974127163,0.06,151.44,151.43,43.28099969]
[1751974130353,0.06,151.44,151.43,40.06371128]
[1751974130550,0.06,151.44,151.43,43.28099969]
[1751974131774,0.06,151.44,151.43,87.93064855]
[1751974131979,0.06,151.44,151.43,100.79980219]
[1751974132353,0.06,151.44,151.43,107.65980219]
[1751974134258,1e-08,151.44,151.43,107.65980219]
[1751974134459,1e-08,151.44,151.43,89.77270219]
[1751974136063,1e-08,151.5,151.49,3.21728841]
[1751974136294,1e-08,151.5,151.49,62.65728841]
[1751974136587,1e-08,151.5,151.49,29.21728841]
[1751974137073,1e-08,151.5,151.49,62.65728841]
[1751974137475,1e-08,151.5,151.49,29.21728841]
[1751974137676,1e-08,151.5,151.49,62.65728841]
[1751974138092,1e-08,151.5,151.49,35.81838419]
[1751974138292,1e-08,151.5,151.49,69.25838419]
[1751974146300,1e-08,151.5,151.49,35.81838419]
[1751974146469,1e-08,151.5,151.49,69.25838419]
[1751974147711,1e-08,151.5,151.49,35.81838419]
[1751974147884,1e-08,151.5,151.49,69.25838419]
[1751974149188,1e-08,151.5,151.49,57.69410801]
[1751974149389,1e-08,151.5,151.49,36.65728841]
[1751974149595,1e-08,151.5,151.47,16.50466028]
[1751974149790,1e-08,151.5,151.49,3.21728841]
[1751974149989,1e-08,151.5,151.49,36.65728841]
[1751974150797,1e-08,151.5,151.49,3.21728841]
[1751974150997,1e-08,151.5,151.49,36.65728841]
[1751974151172,6.79823238,151.56,151.49,41.58080796]
[1751974151374,7.38819613,151.55,151.5,4.92351955]
[1751974151589,3.21728841,151.55,151.51,38.36351955]
[1751974151806,3.21728841,151.55,151.52,4.92351955]
[1751974152002,3.21728841,151.55,151.53,4.92351955]
[1751974152306,3.21728841,151.55,151.54,4.92351955]
[1751974153171,9.81577075,151.55,151.54,4.92351955]
[1751974155308,3.21728841,151.55,151.54,4.92351955]
[1751974155690,3.21728841,151.55,151.54,4.92599319]
[1751974160411,3.21728841,151.56,151.54,4.92599319]
[1751974160578,3.21728841,151.56,151.55,4.92599319]
[1751974161385,9.81533538,151.56,151.55,4.92599319]
[1751974162008,9.81533538,151.56,151.55,4.92707591]
[1751974163209,17.20794953,151.56,151.55,4.92707591]
[1751974163381,10.60990256,151.56,151.55,4.92707591]
[1751974163684,10.60990256,151.56,151.55,4.92731234]
[1751974164608,17.20794953,151.56,151.55,4.92731234]
[1751974166288,17.12130728,151.56,151.55,4.92731234]
[1751974167389,8.86114263,151.56,151.55,4.92731234]
[1751974167708,8.86114263,151.56,151.51,3.21728841]
[1751974167920,3.21728841,151.55,151.52,4.93081541]
[1751974168084,3.21728841,151.55,151.53,4.93081541]
[1751974168715,3.21728841,151.55,151.51,3.21728841]
[1751974169382,3.21728841,151.55,151.51,9.81736207]
[1751974171117,3.21728841,151.55,151.51,3.21728841]
[1751974172698,3.21728841,151.54,151.5,3.21728841]
[1751974174709,3.21728841,151.55,151.5,9.81785028]
[1751974177420,12.49820455,151.55,151.5,9.81785028]
[1751974177593,12.49820455,151.55,151.5,9.84785028]
[1751974178012,9.28091614,151.55,151.5,6.63056187]
[1751974178209,12.49820455,151.55,151.51,3.21728841]
[1751974179416,7.42486793,151.54,151.51,3.21728841]
[1751974179726,7.42486793,151.53,151.51,3.21728841]
[1751974180026,7.42486793,151.52,151.51,3.21728841]
[1751974180194,7.42486793,151.52,151.51,9.81751281]
[1751974182318,7.42486793,151.52,151.51,6.6002244]
[1751974182623,7.42486793,151.52,151.51,9.81751281]
[1751974182998,7.42800942,151.52,151.51,9.81751281]
[1751974186532,7.42800942,151.52,151.51,3.21728841]
[1751974186828,7.42800942,151.52,151.51,9.81751281]
[1751974189242,7.42800942,151.52,151.5,0.03]
[1751974189536,7.42800942,151.51,151.5,0.03]
[1751974190638,7.42800942,151.51,151.5,9.84794847]
[1751974190815,7.42800942,151.51,151.5,9.81794847]
[1751974191016,9.87534551,151.56,151.48,49.9229343]
[1751974191346,7.42733273,151.55,151.51,3.21728841]
[1751974191523,7.42733273,151.54,151.51,3.21728841]
[1751974191725,7.42733273,151.53,151.51,3.21728841]
[1751974191924,9.87534551,151.56,151.51,3.21728841]
[1751974192123,7.42750575,151.55,151.51,9.81751281]
[1751974192320,7.42750575,151.54,151.51,9.81751281]
[1751974192658,7.42750575,151.53,151.51,9.81751281]
[1751974192863,7.42750575,151.52,151.51,9.81751281]
[1751974193215,7.42750575,151.52,151.51,3.21728841]
[1751974196249,7.42750575,151.52,151.51,9.81751281]
[1751974196456,3.21728841,151.55,151.51,9.81751281]
[1751974196635,7.42753019,151.54,151.51,9.81751281]
[1751974196848,7.42753019,151.53,151.51,9.81751281]
[1751974197133,9.87552001,151.56,151.51,9.81751281]
[1751974197333,7.42753217,151.55,151.51,9.81751281]
[1751974197534,7.42753217,151.54,151.51,9.81751281]
[1751974197738,7.42753217,151.53,151.51,9.81751281]
[1751974197942,9.87552001,151.56,151.52,3.21728841]
[1751974198145,7.42753091,151.55,151.52,3.21728841]
[1751974198370,7.42753091,151.54,151.52,3.21728841]
[1751974198529,7.42753091,151.53,151.52,3.21728841]
[1751974198850,7.42753091,151.53,151.51,3.21728841]
[1751974199038,7.42753091,151.52,151.51,3.21728841]
[1751974199235,9.87552001,151.56,151.51,9.81751281]
[1751974199442,7.42757897,151.55,151.51,9.81751281]
[1751974199648,7.42757897,151.54,151.51,9.81751281]
[1751974199976,7.42757897,151.53,151.51,9.81751281]
[1751974200124,6.6582316,151.56,151.51,9.81751281]
[1751974200324,7.42769973,151.55,151.51,9.81751281]
[1751974200628,7.42769973,151.54,151.51,9.81751281]
[1751974200827,7.42769973,151.53,151.51,9.81751281]
[1751974201025,7.42769973,151.52,151.51,9.81751281]
[1751974201461,7.42769973,151.52,151.51,3.21728841]
[1751974202636,7.42769973,151.52,151.51,9.81751281]
[1751974204133,7.42737955,151.52,151.51,9.81751281]
[1751974204555,3.27728841,151.56,151.51,9.81751281]
[1751974204732,7.42709172,151.55,151.52,3.21728841]
[1751974205055,7.42709172,151.54,151.52,3.21728841]
[1751974205225,0.06,151.56,151.53,3.21728841]
[1751974205430,0.06,151.56,151.55,3.21728841]
[1751974205628,7.48378521,151.56,151.55,3.21728841]
[1751974206372,7.48378521,151.56,151.55,9.81577075]
[1751974207457,0.06,151.56,151.55,9.81577075]
[1751974209659,0.06,151.56,151.55,11.32227075]
[1751974209867,0.06,151.56,151.55,17.44507075]
[1751974210461,0.06,151.56,151.55,50.84507075]
[1751974222269,0.06,151.56,151.55,17.44507075]
[1751974222573,0.06,151.56,151.55,17.47507075]
[1751974223473,0.06,151.56,151.55,14.25778234]
[1751974223669,0.06,151.56,151.55,17.47507075]
[1751974223970,0.06,151.56,151.55,3.24728841]
[1751974224997,0.06,151.56,151.55,9.84577075]
[1751974225791,0.06,151.56,151.55,3.24728841]
[1751974229099,0.06,151.56,151.55,9.84577075]
[1751974230710,0.06,151.56,151.55,3.24728841]
[1751974234216,0.06,151.56,151.55,9.84577075]
[1751974237586,0.06,151.56,151.55,0.03]
[1751974237888,36.66066953,151.56,151.55,0.03]
[1751974239513,33.44338112,151.56,151.55,0.03]
[1751974239819,43.2587165,151.56,151.55,0.03]
[1751974240902,45.06515913,151.56,151.55,0.03]
[1751974251222,63.71480799,151.56,151.55,0.03]
[1751974260931,61.90771832,151.56,151.55,0.03]
[1751974262830,71.19194275,151.56,151.55,0.03]
[1751974263153,55.30967135,151.56,151.55,0.03]
[1751974266232,36.66002249,151.56,151.55,0.03]
[1751974266737,33.44338112,151.56,151.55,0.03]
[1751974271540,38.46560804,151.56,151.55,0.03]
[1751974271840,33.44338112,151.56,151.55,0.03]
[1751974272223,38.46560804,151.56,151.55,0.03]
[1751974277838,33.44338112,151.56,151.55,0.03]
[1751974278025,38.46560804,151.56,151.55,0.03]
[1751974278226,33.44338112,151.56,151.55,0.03]
[1751974279051,38.46560804,151.56,151.55,0.03]
[1751974279952,45.06365501,151.56,151.55,0.03]
[1751974280255,72.9975283,151.56,151.55,0.03]
[1751974280428,63.71330387,151.56,151.55,0.03]
[1751974281358,63.71330387,151.56,151.5,0.03]
[1751974281359,26.0,151.52,151.5,0.03]
[1751974281556,38.40560804,151.51,151.5,0.03]
[1751974282343,63.6554813,151.51,151.5,0.03]
[1751974283746,72.92761155,151.51,151.5,0.03]
[1751974284757,63.6554813,151.51,151.5,0.03]
[1751974284932,72.92234163,151.51,151.5,0.03]
[1751974285730,58.63325438,151.51,151.5,0.03]
[1751974285928,63.6554813,151.51,151.5,0.03]
[1751974287633,58.63325438,151.51,151.5,0.03]
[1751974288035,63.6554813,151.51,151.5,0.03]
[1751974289663,38.40560804,151.51,151.5,0.03]
[1751974290659,33.38338112,151.51,151.5,0.03]
[1751974290846,7.38338112,151.51,151.5,0.03]
[1751974291030,5.02222692,151.52,151.5,0.03]
[1751974291236,12.40560804,151.52,151.5,0.03]
[1751974291431,7.38338112,151.51,151.5,0.03]
[1751974292535,37.6554813,151.51,151.5,0.03]
[1751974297559,46.92234163,151.51,151.5,0.03]
[1751974298345,44.64964886,151.47,151.44,7.7866]
[1751974298558,5.02222692,151.45,151.44,7.7866]
[1751974299263,13.98612257,151.46,151.44,7.7866]
[1751974299461,5.02222692,151.45,151.44,7.7866]
[1751974300659,11.62506614,151.45,151.44,0.03]
[1751974302947,30.274715,151.45,151.44,0.03]
[1751974303260,37.65591778,151.45,151.44,0.03]
[1751974303436,30.274715,151.45,151.44,0.03]
[1751974303643,37.65344961,151.45,151.44,0.03]
[1751974309190,30.274715,151.45,151.44,0.03]
[1751974310884,42.660569,151.45,151.44,0.03]
[1751974315086,190.760569,151.45,151.44,0.03]
[1751974317895,185.73834208,151.45,151.44,0.03]
[1751974325486,185.74648464,151.45,151.44,0.03]
[1751974326804,179.14364542,151.45,151.44,0.03]
[1751974327103,26.0214185,151.45,151.44,0.03]
[1751974327401,7.37176964,151.45,151.44,7.6841]
[1751974328112,26.0,151.46,151.44,7.6841]
[1751974328301,23.67187578,151.48,151.44,12.70632692]
[1751974328504,153.12222692,151.49,151.45,5.02222692]
[1751974328692,7.37845941,151.48,151.45,5.02222692]
[1751974328887,7.37845941,151.48,151.44,14.28722592]
[1751974329114,7.37845941,151.48,151.45,5.02222692]
[1751974330108,5.02222692,151.47,151.44,7.6841]
[1751974330490,12.40068633,151.48,151.44,7.6841]
[1751974330685,31.05033519,151.48,151.44,7.6841]
[1751974331019,7.37845941,151.47,151.44,7.6841]
[1751974332213,7.37845941,151.47,151.44,14.2871485]
[1751974332384,23.67187578,151.48,151.44,19.30937542]
[1751974332581,7.38182872,151.47,151.44,12.70632692]
[1751974332780,7.38182872,151.47,151.44,7.6841]
[1751974333191,12.40405564,151.47,151.44,7.6841]
[1751974334314,7.38182872,151.47,151.44,7.6841]
[1751974334612,23.67187578,151.48,151.44,7.6841]
[1751974334812,5.02222692,151.45,151.44,7.6841]
[1751974336703,12.40660493,151.45,151.44,7.6841]
[1751974339111,7.38437801,151.45,151.44,12.70632692]
[1751974339313,0.06,151.5,151.44,19.30960214]
[1751974339617,0.06,151.5,151.49,13.00932692]
[1751974340193,0.06,151.56,151.49,13.00932692]
[1751974340403,7.44823547,151.56,151.53,5.02222692]
[1751974340603,12.47046239,151.56,151.51,5.02222692]
[1751974342007,7.44823547,151.56,151.51,5.02222692]
[1751974342207,12.47046239,151.56,151.51,5.02222692]
[1751974343535,5.02222692,151.54,151.49,7.9871]
[1751974343828,7.37414638,151.54,151.49,7.9871]
[1751974344031,5.02222692,151.52,151.49,7.9871]
[1751974344603,23.67187578,151.53,151.49,7.9871]
[1751974344809,23.67187578,151.53,151.49,13.00932692]
[1751974345015,23.67187578,151.53,151.49,7.9871]
[1751974345503,5.02222692,151.52,151.49,7.9871]
[1751974345731,5.02222692,151.51,151.49,7.9871]
[1751974345918,25.24921564,151.53,151.49,7.9871]
[1751974346118,5.02222692,151.51,151.49,7.9871]
[1751974346425,5.02222692,151.52,151.49,7.9871]
[1751974350324,11.62206375,151.52,151.49,7.9871]
[1751974352624,23.67187578,151.51,151.49,7.9871]
[1751974352830,5.02222692,151.5,151.46,5.02222692]
[1751974353235,5.02222692,151.5,151.45,19.29377714]
[1751974354122,5.02222692,151.5,151.45,14.27155022]
[1751974354325,5.02222692,151.5,151.46,5.02222692]
[1751974354735,5.02222692,151.5,151.45,14.27155022]
[1751974355035,5.02222692,151.49,151.45,19.29377714]
[1751974356077,5.02222692,151.49,151.45,7.6688]
[1751974356342,5.02222692,151.49,151.45,14.27160985]
[1751974357023,5.02222692,151.49,151.45,19.29383677]
[1751974357639,5.02222692,151.49,151.45,14.27160985]
[1751974357842,5.02222692,151.49,151.45,19.29383677]
[1751974360849,5.02222692,151.49,151.45,7.6688]
[1751974361225,25.25005186,151.51,151.45,19.29379241]
[1751974361539,23.67187578,151.51,151.47,5.02222692]
[1751974363643,23.67187578,151.51,151.46,6.60221187]
[1751974363831,23.67187578,151.51,151.47,5.02222692]
[1751974364627,23.67187578,151.51,151.46,6.60221187]
[1751974364827,23.67187578,151.51,151.47,5.02222692]
[1751974365145,18.64964886,151.51,151.47,5.02222692]
[1751974365325,23.67187578,151.51,151.47,5.02222692]
[1751974365939,23.67187578,151.51,151.46,6.60221187]
[1751974366148,23.67187578,151.51,151.46,11.62443879]
[1751974366535,18.64964886,151.51,151.47,5.02222692]
[1751974366735,23.67187578,151.51,151.47,5.02222692]
[1751974368028,23.67187578,151.51,151.46,11.62443879]
[1751974368648,23.67187578,151.51,151.46,6.60221187]
[1751974368944,23.67187578,151.51,151.46,11.62443879]
[1751974369333,7.38740937,151.5,151.46,11.62443879]
[1751974369835,23.67187578,151.51,151.46,11.62443879]
[1751974370351,7.3905133,151.5,151.46,11.62443879]
[1751974371639,0.06,151.52,151.48,5.02222692]
[1751974371941,7.45388239,151.52,151.48,5.02222692]
[1751974372750,12.47610931,151.52,151.48,5.02222692]
[1751974372954,7.39388239,151.51,151.47,11.6238972]
[1751974373338,12.41610931,151.51,151.47,11.6238972]
[1751974373535,12.41610931,151.51,151.46,11.62443894]
[1751974373932,5.02222692,151.5,151.46,11.62443894]
[1751974374134,12.41610931,151.5,151.46,6.60221202]
[1751974374333,7.39388239,151.49,151.46,6.60221202]
[1751974374551,5.02222692,151.49,151.46,6.60221202]
[1751974374741,7.39787025,151.5,151.46,6.60221202]
[1751974374954,5.02222692,151.48,151.45,7.6688]
[1751974375259,12.42048556,151.48,151.44,6.63299778]
[1751974375629,7.39825864,151.48,151.47,5.02222692]
[1751974375835,0.06,151.52,151.47,5.02222692]
[1751974376143,0.06,151.52,151.51,5.02222692]
[1751974377048,0.06,151.52,151.51,11.62245132]
[1751974377860,0.06,151.52,151.51,6.6002244]
[1751974378065,0.06,151.52,151.51,11.62245132]
[1751974384959,0.06,151.52,151.51,6.6002244]
[1751974385159,0.06,151.52,151.51,11.62245132]
[1751974386944,0.06,151.52,151.51,6.6002244]
[1751974387962,0.06,151.52,151.51,11.62245132]
[1751974393590,0.06,151.52,151.51,6.6002244]
[1751974393947,0.06,151.52,151.51,11.62245132]
[1751974397278,0.06,151.52,151.5,19.4292991]
[1751974397478,0.06,151.52,151.5,7.8066]
[1751974397770,0.06,151.52,151.51,5.02222692]
[1751974401053,0.06,151.52,151.5,7.8366]
[1751974401253,0.06,151.52,151.5,5.05222692]
[1751974403375,0.06,151.52,151.5,0.03]
[1751974403568,0.06,151.52,151.5,5.05222692]
[1751974406391,0.06,151.52,151.51,5.02222692]
[1751974407770,0.06,151.52,151.5,0.03]
[1751974407968,0.06,151.52,151.51,5.02222692]
[1751974409662,0.06,151.52,151.5,5.05222692]
[1751974409862,0.06,151.52,151.5,0.03]
[1751974410076,0.06,151.52,151.5,5.05222692]
[1751974410362,0.06,151.52,151.5,0.03]
[1751974410678,0.06,151.52,151.5,5.05222692]
[1751974411270,0.06,151.52,151.5,0.03]
[1751974411469,0.06,151.52,151.5,5.05222692]
[1751974411669,0.06,151.52,151.5,11.65278018]
[1751974412190,7.46508719,151.52,151.5,5.05222692]
[1751974412390,0.06,151.52,151.5,5.05222692]
[1751974412566,0.06,151.52,151.5,11.65284316]
[1751974412771,7.46542733,151.52,151.5,11.65284316]
[1751974412971,0.06,151.52,151.5,5.05222692]
[1751974413381,7.46542733,151.52,151.5,5.05222692]
[1751974413578,0.06,151.52,151.5,5.05222692]
[1751974413966,7.46650423,151.52,151.5,5.05222692]
[1751974414166,0.06,151.52,151.5,5.05222692]
[1751974414666,7.46790924,151.52,151.5,5.05222692]
[1751974414865,0.06,151.52,151.5,5.05222692]
[1751974415270,7.46790824,151.52,151.5,11.65283614]
[1751974415493,0.06,151.52,151.5,11.65283614]
[1751974415678,0.06,151.52,151.5,5.05222692]
[1751974415867,7.46921327,151.52,151.5,5.05222692]
[1751974416067,0.06,151.52,151.5,5.05222692]
[1751974416902,0.06,151.52,151.5,3.24550378]
[1751974417283,0.06,151.52,151.5,9.84614136]
[1751974420299,7.42108409,151.51,151.5,9.84614136]
[1751974420879,0.06,151.52,151.5,9.84614136]
[1751974421096,0.06,151.52,151.51,3.21550378]
[1751974422497,0.06,151.52,151.51,9.81572818]
[1751974429482,0.06,151.52,151.51,17.51332818]
[1751974429691,0.06,151.56,151.51,65.52555317]
[1751974429915,0.06,151.56,151.55,3.21550378]
[1751974430710,0.06,151.56,151.55,9.81398612]
[1751974432801,0.06,151.56,151.55,11.61737415]
[1751974434477,0.06,151.56,151.55,13.23357415]
[1751974435317,0.06,151.56,151.55,14.35898234]
[1751974435601,0.06,151.56,151.55,19.37787415]
[1751974440808,0.06,151.56,151.55,14.35898234]
[1751974440998,0.06,151.56,151.55,19.37787415]
[1751974446814,0.06,151.56,151.55,11.61737415]
[1751974446999,0.06,151.56,151.51,8.0856]
[1751974447207,5.01889181,151.55,151.51,11.61911621]
[1751974447406,0.06,151.56,151.51,6.6002244]
[1751974447605,5.01889181,151.54,151.51,6.6002244]
[1751974447913,5.01889181,151.54,151.5,5.04889181]
[1751974449907,5.01889181,151.54,151.51,6.6002244]
[1751974450290,5.01889181,151.54,151.5,11.6493552]
[1751974451708,5.01889181,151.54,151.5,0.03]
[1751974452115,5.01889181,151.54,151.5,5.04889181]
[1751974452298,12.40805387,151.55,151.5,0.03]
[1751974452498,12.40805387,151.55,151.5,5.04889181]
[1751974454217,7.38965573,151.54,151.5,5.04889181]
[1751974454421,5.01889181,151.55,151.5,11.64938562]
[1751974454597,12.40881416,151.55,151.5,11.64938562]
[1751974455025,5.01889181,151.54,151.5,11.64938562]
[1751974455196,12.40881416,151.54,151.5,11.64938562]
[1751974455526,7.38992235,151.54,151.5,11.64938562]
[1751974455716,12.40881416,151.54,151.5,11.64938562]
[1751974456624,12.40881416,151.54,151.5,0.03]
[1751974456827,12.40881416,151.54,151.5,5.04889181]
[1751974457709,7.38992235,151.54,151.5,11.64954616]
[1751974457912,5.01889181,151.54,151.5,11.64954616]
[1751974458120,12.40944092,151.55,151.5,11.64954616]
[1751974459239,12.40944092,151.55,151.51,5.01889181]
[1751974462198,12.40944092,151.55,151.5,0.03]
[1751974462397,12.40944092,151.55,151.51,5.01889181]
[1751974462798,10.60561108,151.55,151.51,3.21506197]
[1751974464221,10.66561108,151.55,151.51,9.81518121]
[1751974464920,3.27506197,151.55,151.51,9.81518121]
[1751974465306,3.21506197,151.54,151.5,3.24506197]
[1751974465504,10.60774084,151.54,151.5,3.24506197]
[1751974465728,10.60774084,151.54,151.5,9.84571256]
[1751974466930,10.60774084,151.54,151.5,0.03]
[1751974467710,3.21506197,151.53,151.5,0.03]
[1751974468929,3.21506197,151.51,151.5,0.03]
[1751974469149,3.21506197,151.52,151.5,0.03]
[1751974470607,10.60762407,151.53,151.5,0.03]
[1751974470807,3.21506197,151.53,151.5,0.03]
[1751974471409,10.60590607,151.53,151.5,0.03]
[1751974472833,12.41564039,151.53,151.5,0.03]
[1751974478928,19.014997,151.53,151.5,0.03]
[1751974479124,11.6241529,151.53,151.5,0.03]
[1751974479323,5.02479629,151.53,151.5,0.03]
[1751974479730,12.41284556,151.53,151.5,0.03]
[1751974483242,5.02479629,151.52,151.5,0.03]
[1751974483443,12.41284556,151.52,151.5,0.03]
[1751974486439,7.38804927,151.51,151.5,0.03]
[1751974486626,7.38804927,151.52,151.5,0.03]
[1751974486831,7.38804927,151.51,151.5,0.03]
[1751974487235,5.08479629,151.53,151.5,0.03]
[1751974487236,7.38804927,151.52,151.5,0.03]
[1751974487445,5.08479629,151.53,151.5,0.03]
[1751974487446,7.38804927,151.51,151.5,0.03]
[1751974491534,7.38804927,151.51,151.5,5.05479629]
[1751974492055,0.06,151.53,151.5,5.05479629]
[1751974492240,0.06,151.53,151.52,5.02479629]
[1751974493352,0.06,151.53,151.5,0.03]
[1751974493535,0.06,151.53,151.52,5.02479629]
[1751974494150,0.06,151.53,151.52,11.62458509]
[1751974494845,0.06,151.53,151.52,9.81372568]
[1751974495347,0.06,151.53,151.52,17.55392568]
[1751974496750,0.06,151.53,151.52,30.4096732]
[1751974499058,0.06,151.53,151.52,17.55392568]
[1751974500033,0.06,151.53,151.52,30.4096732]
[1751974500328,0.06,151.53,151.52,75.05932206]
[1751974500329,1e-08,151.53,151.52,75.05932206]
[1751974500655,0.06,151.55,151.54,26.0]
[1751974500841,0.06,151.55,151.54,35.81285465]
[1751974502938,0.06,151.55,151.54,37.61706478]
[1751974505370,0.06,151.56,151.54,37.61706478]
[1751974505940,0.06,151.56,151.55,5.01814701]
[1751974507259,0.06,151.56,151.55,11.61662935]
[1751974508369,0.06,151.56,151.55,6.59848234]
[1751974508541,0.06,151.56,151.55,11.61662935]
[1751974510365,0.06,151.56,151.54,6.59876516]
[1751974510546,0.06,151.56,151.53,11.64730331]
[1751974512873,0.06,151.56,151.53,0.03]
[1751974513039,0.06,151.56,151.53,5.04814701]
[1751974513738,0.06,151.56,151.53,11.64719867]
[1751974513939,0.06,151.56,151.54,5.01814701]
[1751974515372,0.06,151.56,151.55,5.01814701]
[1751974516441,0.06,151.56,151.55,11.61662935]
[1751974526864,0.1,151.62,151.55,28.11283522]
[1751974527064,0.1,151.62,151.6,5.01814701]
[1751974527282,0.1,151.62,151.59,5.01814701]
[1751974527675,0.1,151.62,151.55,23.09468821]
[1751974527880,5.01814701,151.61,151.57,5.01814701]
[1751974528388,5.01814701,151.61,151.56,5.01814701]
[1751974528569,5.01814701,151.6,151.56,5.01814701]
[1751974528970,5.01814701,151.61,151.56,11.61577569]
[1751974530694,12.39501429,151.61,151.57,5.01814701]
[1751974532788,12.39501429,151.61,151.56,11.61577569]
[1751974533297,12.39501429,151.61,151.56,5.01814701]
[1751974533701,5.01814701,151.59,151.55,11.61662935]
[1751974533892,12.39501429,151.6,151.55,11.61662935]
[1751974534083,12.39501429,151.6,151.56,5.01814701]
[1751974534894,7.37686728,151.6,151.57,5.01814701]
[1751974535092,0.1,151.62,151.57,5.01814701]
[1751974535289,7.39239195,151.61,151.58,11.61502679]
[1751974535478,7.39239195,151.61,151.59,5.01814701]
[1751974535967,7.49239195,151.62,151.59,5.01814701]
[1751974536167,0.1,151.62,151.59,5.01814701]
[1751974537279,0.1,151.62,151.59,11.61484672]
[1751974537875,7.40344537,151.61,151.58,11.61520999]
[1751974538291,0.1,151.62,151.58,11.61520999]
[1751974538477,7.40513268,151.61,151.58,11.61520999]
[1751974538680,0.1,151.62,151.58,11.61520999]
[1751974538878,7.40513268,151.61,151.58,11.61520999]
[1751974539079,0.1,151.62,151.58,11.61520999]
[1751974539280,7.40513268,151.61,151.58,11.61520999]
[1751974539487,0.1,151.62,151.59,5.01814701]
[1751974539688,7.40681051,151.61,151.59,5.01814701]
[1751974539998,0.1,151.62,151.59,11.61485769]
[1751974540202,7.40665782,151.61,151.59,11.61485769]
[1751974540388,0.1,151.62,151.59,11.61485769]
[1751974540696,7.40843759,151.61,151.58,11.61516817]
[1751974540900,5.11814701,151.62,151.58,11.61516817]
[1751974541200,7.40853838,151.61,151.58,11.61516817]
[1751974541495,5.11814701,151.62,151.58,11.61516817]
[1751974541697,7.40925777,151.61,151.58,11.61516817]
[1751974541883,5.11814701,151.62,151.58,11.61516817]
[1751974542085,7.40925648,151.61,151.58,11.61516817]
[1751974542401,5.11814701,151.62,151.58,11.61516817]
[1751974542604,7.40954805,151.61,151.58,11.61516817]
[1751974542776,5.11814701,151.62,151.58,11.61516817]
[1751974543099,7.40954676,151.61,151.58,11.61516817]
[1751974543401,0.1,151.62,151.58,11.61516817]
[1751974543578,7.40945421,151.61,151.58,11.61516817]
[1751974543779,0.1,151.62,151.58,11.61516817]
[1751974543986,7.40945292,151.61,151.58,11.61516817]
[1751974544294,0.1,151.62,151.58,11.61516817]
[1751974544480,7.40931943,151.61,151.58,11.61516817]
[1751974544680,0.1,151.62,151.58,11.61516817]
[1751974544899,7.40978874,151.61,151.58,11.61516817]
[1751974545086,0.1,151.62,151.58,6.59702116]
[1751974545287,7.40978874,151.61,151.58,11.61516817]
[1751974545486,7.4098501,151.6,151.58,11.61516817]
[1751974545695,0.1,151.62,151.58,11.61516817]
[1751974545883,7.40969734,151.61,151.58,11.61516817]
[1751974546082,0.1,151.62,151.59,11.6146994]
[1751974546302,7.40959526,151.61,151.59,11.6146994]
[1751974546502,0.1,151.62,151.59,11.6146994]
[1751974546684,7.40935629,151.61,151.59,11.6146994]
[1751974547004,0.1,151.62,151.59,11.6146994]
[1751974547204,7.40935629,151.61,151.59,11.6146994]
[1751974547496,0.1,151.62,151.59,11.6146994]
[1751974547705,7.40916258,151.61,151.59,11.6146994]
[1751974548006,0.1,151.62,151.59,11.6146994]
[1751974548306,7.40916258,151.61,151.59,11.6146994]
[1751974548492,0.1,151.62,151.59,11.6146994]
[1751974548690,7.40900307,151.61,151.59,11.6146994]
[1751974548991,0.1,151.62,151.59,11.6146994]
[1751974549302,7.40900307,151.61,151.59,11.6146994]
[1751974549502,0.1,151.62,151.59,11.6146994]
[1751974549706,7.4088772,151.61,151.59,11.6146994]
[1751974549998,12.42722708,151.6,151.55,6.59848234]
[1751974550308,5.11814701,151.62,151.57,5.01814701]
[1751974550605,7.40879153,151.61,151.58,5.01814701]
[1751974550803,0.1,151.62,151.58,5.01814701]
[1751974551009,12.42703804,151.61,151.56,5.01814701]